bitfinex-derivatives/quotes_ETHF0:USTF0_20260314
["timestamp","ask_amount","ask_price","bid_price","bid_amount"]
[1773491139368,4.04373785,2077.0,2076.0,1.86283034]
[1773491139662,5.67867401,2076.9,2076.0,1.86283034]
[1773491139863,5.67867401,2076.8,2076.0,1.86283034]
[1773491140060,5.67867401,2076.7,2076.0,1.86283034]
[1773491140263,4.04373785,2077.0,2076.0,1.86283034]
[1773491140461,5.67795402,2076.9,2076.0,1.86283034]
[1773491140662,5.67795402,2076.8,2076.0,1.86283034]
[1773491140857,5.67795402,2076.7,2076.0,1.86283034]
[1773491141058,4.04373785,2077.0,2076.0,1.86283034]
[1773491141367,5.67795402,2076.9,2076.0,1.86283034]
[1773491141568,5.67795402,2076.8,2076.0,1.86283034]
[1773491141767,5.67795402,2076.7,2076.0,1.86283034]
[1773491141968,4.04373785,2077.0,2076.0,1.86283034]
[1773491142164,5.67736125,2076.9,2076.0,1.86283034]
[1773491142461,5.67736125,2076.8,2076.0,1.86283034]
[1773491142661,5.67736125,2076.7,2076.0,1.86283034]
[1773491142867,0.0050141,2077.0,2076.0,1.86283034]
[1773491143063,5.67662821,2076.9,2076.0,1.86283034]
[1773491153171,5.67662821,2076.9,2076.0,9.41217235]
[1773491153372,5.67662821,2076.9,2076.1,1.87610201]
[1773491162378,5.67662821,2076.8,2076.0,1.88517295]
[1773491162581,0.0050141,2077.0,2076.0,1.88517295]
[1773491162777,5.68106581,2076.9,2076.0,1.88517295]
[1773491162977,5.68106581,2076.8,2076.0,1.88517295]
[1773491163178,0.0050141,2077.0,2076.0,1.88517295]
[1773491163380,5.68113587,2076.9,2076.0,1.88517295]
[1773491163581,5.68113587,2076.8,2076.0,1.88517295]
[1773491163781,0.0050141,2077.0,2076.0,1.88517295]
[1773491163982,5.68113587,2076.9,2076.0,1.88517295]
[1773491164182,5.68113587,2076.8,2076.0,1.88517295]
[1773491164382,0.0050141,2077.0,2076.0,1.88517295]
[1773491164583,5.68120108,2076.9,2076.0,1.88517295]
[1773491164881,5.68120108,2076.8,2076.0,1.88517295]
[1773491165083,0.0050141,2077.0,2076.0,1.88517295]
[1773491165281,5.68128435,2076.9,2076.0,1.88517295]
[1773491165477,5.68128435,2076.8,2076.0,1.88517295]
[1773491165683,0.0050141,2077.0,2076.0,1.88517295]
[1773491165884,5.68128435,2076.9,2076.0,1.88517295]
[1773491166082,5.68128435,2076.8,2076.0,1.88517295]
[1773491166276,0.0050141,2077.0,2076.0,1.88517295]
[1773491166480,5.68129407,2076.9,2076.0,1.88517295]
[1773491166682,0.0050141,2077.0,2076.0,1.88517295]
[1773491166683,5.68129407,2076.8,2076.0,1.88517295]
[1773491166883,0.0050141,2077.0,2076.0,1.88517295]
[1773491167181,5.68129407,2076.9,2076.0,1.88517295]
[1773491167384,5.68129407,2076.8,2076.0,1.88517295]
[1773491167578,1.52231867,2076.8,2076.0,1.88517295]
[1773491168082,7.20378129,2076.8,2076.0,1.88517295]
[1773491168277,1.52231867,2076.8,2076.0,1.88517295]
[1773491168680,7.20415417,2076.8,2076.0,1.88517295]
[1773491168881,1.52231867,2076.8,2076.0,1.88517295]
[1773491169285,7.20415417,2076.8,2076.0,1.88517295]
[1773491169486,1.52231867,2076.8,2076.0,1.88517295]
[1773491169887,7.20456885,2076.8,2076.0,1.88517295]
[1773491170083,1.52231867,2076.8,2076.0,1.88517295]
[1773491170580,7.20460616,2076.8,2076.0,1.88517295]
[1773491170786,1.52231867,2076.8,2076.0,1.88517295]
[1773491171287,7.20502965,2076.8,2076.0,1.88517295]
[1773491171490,1.52231867,2076.6,2076.0,1.88517295]
[1773491171691,1.52231867,2076.6,2075.8,35.5145874]
[1773491171989,1.52231867,2076.6,2075.8,9.4445874]
[1773491172188,1.52231867,2076.6,2075.9,1.89524539]
[1773491180593,7.21550521,2076.6,2075.9,1.89524539]
[1773491180787,1.52231867,2076.6,2075.9,1.89524539]
[1773491181391,7.21532333,2076.6,2075.9,1.89524539]
[1773491181595,1.52231867,2076.6,2075.9,1.89524539]
[1773491182797,7.21486475,2076.6,2075.9,1.89524539]
[1773491182996,1.52231867,2076.6,2075.9,1.89524539]
[1773491183598,7.2145059,2076.6,2075.9,1.89524539]
[1773491183798,1.52231867,2076.6,2075.9,1.89524539]
[1773491188399,7.21425955,2076.6,2075.9,1.89524539]
[1773491188597,1.52231867,2076.6,2075.9,1.89524539]
[1773491189292,7.21425095,2076.6,2075.9,1.89524539]
[1773491189498,1.52231867,2076.6,2075.9,1.89524539]
[1773491190198,7.21446086,2076.6,2075.9,1.89524539]
[1773491190394,1.52231867,2076.6,2075.9,1.89524539]
[1773491190995,7.21440465,2076.6,2075.9,1.89524539]
[1773491191201,1.52231867,2076.6,2075.9,1.89524539]
[1773491191793,7.21511565,2076.6,2075.9,1.89524539]
[1773491191998,1.52231867,2076.6,2075.9,1.89524539]
[1773491192697,7.21511565,2076.6,2075.9,1.89524539]
[1773491192895,1.52231867,2076.6,2075.9,1.89524539]
[1773491193495,7.21560178,2076.6,2075.9,1.89524539]
[1773491193699,1.52231867,2076.6,2075.9,1.89524539]
[1773491194303,7.21572279,2076.6,2075.9,1.89524539]
[1773491194499,1.52231867,2076.6,2075.9,1.89524539]
[1773491195105,5.69358515,2076.6,2075.9,1.89524539]
[1773491195305,1.52231867,2076.8,2075.9,1.89524539]
[1773491195506,5.69383101,2076.7,2075.9,1.89524539]
[1773491195703,5.69383101,2076.6,2075.9,1.89524539]
[1773491195906,4.04373785,2077.0,2076.1,1.95860458]
[1773491196099,5.69324708,2076.9,2076.1,1.95860458]
[1773491196305,5.69324708,2076.8,2076.1,1.95860458]
[1773491196511,5.69324708,2076.7,2076.1,1.95860458]
[1773491196709,1.52231867,2076.9,2076.1,1.95860458]
[1773491197014,5.69355623,2076.8,2076.1,1.95860458]
[1773491197217,5.69355623,2076.7,2076.1,1.95860458]
[1773491197413,1.52231867,2076.9,2076.1,1.95860458]
[1773491197713,5.69389431,2076.8,2076.1,1.95860458]
[1773491197915,5.69389431,2076.7,2076.1,1.95860458]
[1773491198115,1.52231867,2076.9,2076.1,1.95860458]
[1773491198317,5.69427237,2076.8,2076.1,1.95860458]
[1773491198614,5.69427237,2076.7,2076.1,1.95860458]
[1773491198815,1.52231867,2076.9,2076.1,1.95860458]
[1773491199016,5.69427237,2076.8,2076.1,1.95860458]
[1773491199215,5.69427237,2076.7,2076.1,1.95860458]
[1773491199516,1.52231867,2076.9,2076.1,1.95860458]
[1773491199715,5.69467789,2076.8,2076.1,1.95860458]
[1773491199914,5.69467789,2076.7,2076.1,1.95860458]
[1773491200115,1.52231867,2076.9,2076.1,1.95860458]
[1773491200308,5.69512831,2076.8,2076.1,1.95860458]
[1773491200512,5.69512831,2076.7,2076.1,1.95860458]
[1773491200712,1.52231867,2076.9,2076.1,1.95860458]
[1773491200911,5.69512831,2076.8,2076.1,1.95860458]
[1773491201113,5.69512831,2076.7,2076.1,1.95860458]
[1773491201315,1.52231867,2076.9,2076.1,1.95860458]
[1773491201615,5.69561622,2076.8,2076.1,1.95860458]
[1773491201815,5.69561622,2076.7,2076.1,1.95860458]
[1773491202116,1.52231867,2076.9,2076.1,1.95860458]
[1773491202312,5.69548015,2076.8,2076.1,1.95860458]
[1773491202512,5.69548015,2076.7,2076.1,1.95860458]
[1773491202713,1.52231867,2076.9,2076.1,1.95860458]
[1773491202915,5.69548015,2076.8,2076.1,1.95860458]
[1773491203111,5.69548015,2076.7,2076.1,1.95860458]
[1773491203317,1.52231867,2076.9,2076.1,1.95860458]
[1773491203616,5.69534848,2076.8,2076.1,1.95860458]
[1773491203816,5.69534848,2076.7,2076.1,1.95860458]
[1773491204014,1.52231867,2076.9,2076.1,1.95860458]
[1773491204213,5.69529263,2076.8,2076.1,1.95860458]
[1773491204418,5.69529263,2076.7,2076.1,1.95860458]
[1773491204615,1.52231867,2076.9,2076.1,1.95860458]
[1773491204814,5.69529263,2076.8,2076.1,1.95860458]
[1773491205017,5.69529263,2076.7,2076.1,1.95860458]
[1773491205216,1.52231867,2076.9,2076.1,1.95860458]
[1773491205417,5.69522037,2076.8,2076.1,1.95860458]
[1773491205617,5.69522037,2076.7,2076.1,1.95860458]
[1773491205918,1.52231867,2076.9,2076.1,1.95860458]
[1773491206112,5.69522037,2076.8,2076.1,1.95860458]
[1773491206418,5.69522037,2076.7,2076.1,1.95860458]
[1773491206618,1.52231867,2076.9,2076.1,1.95860458]
[1773491206817,5.69631895,2076.8,2076.1,1.95860458]
[1773491207018,5.69631895,2076.7,2076.1,1.95860458]
[1773491207314,1.52231867,2076.9,2076.1,1.95860458]
[1773491207516,5.69624263,2076.8,2076.1,1.95860458]
[1773491207712,5.69624263,2076.7,2076.1,1.95860458]
[1773491207920,1.52231867,2076.9,2076.1,1.95860458]
[1773491208120,5.69624263,2076.8,2076.1,1.95860458]
[1773491208314,5.69624263,2076.7,2076.1,1.95860458]
[1773491208516,1.52231867,2076.9,2076.1,1.95860458]
[1773491208712,5.69617157,2076.8,2076.1,1.95860458]
[1773491208912,5.69617157,2076.7,2076.1,1.95860458]
[1773491209112,1.52231867,2076.9,2076.1,1.95860458]
[1773491209312,5.69610394,2076.8,2076.1,1.95860458]
[1773491209521,5.69610394,2076.7,2076.1,1.95860458]
[1773491209719,1.52231867,2076.9,2076.1,1.95860458]
[1773491209921,5.69610394,2076.8,2076.1,1.95860458]
[1773491210219,5.69610394,2076.7,2076.1,1.95860458]
[1773491210418,1.52231867,2076.9,2076.1,1.95860458]
[1773491210622,5.69604328,2076.8,2076.1,1.95860458]
[1773491210822,5.69604328,2076.7,2076.1,1.95860458]
[1773491211022,1.52231867,2076.9,2076.1,1.95860458]
[1773491211224,5.69604328,2076.8,2076.1,1.95860458]
[1773491211419,5.69604328,2076.7,2076.1,1.95860458]
[1773491211619,1.52231867,2076.9,2076.1,1.95860458]
[1773491211819,5.69604314,2076.8,2076.1,1.95860458]
[1773491212118,5.69604314,2076.7,2076.1,1.95860458]
[1773491212319,1.52231867,2076.9,2076.1,1.95860458]
[1773491212621,5.69606111,2076.8,2076.1,1.95860458]
[1773491212920,5.69606111,2076.7,2076.1,1.95860458]
[1773491213217,1.52231867,2076.9,2076.1,1.95860458]
[1773491213419,5.6961089,2076.8,2076.1,1.95860458]
[1773491213720,5.6961089,2076.7,2076.1,1.95860458]
[1773491213920,1.52231867,2076.9,2076.1,1.95860458]
[1773491214120,5.6961089,2076.8,2076.1,1.95860458]
[1773491214321,5.6961089,2076.7,2076.1,1.95860458]
[1773491214621,1.52231867,2076.9,2076.1,1.95860458]
[1773491214921,5.69617649,2076.8,2076.1,1.95860458]
[1773491215118,5.69617649,2076.7,2076.1,1.95860458]
[1773491215320,1.52231867,2076.9,2076.1,1.95860458]
[1773491215519,5.69626323,2076.8,2076.1,1.95860458]
[1773491215719,5.69626323,2076.7,2076.1,1.95860458]
[1773491215923,1.52231867,2076.9,2076.1,1.95860458]
[1773491216120,5.69626323,2076.8,2076.1,1.95860458]
[1773491216319,5.69626323,2076.7,2076.1,1.95860458]
[1773491216520,1.52231867,2076.9,2076.1,1.95860458]
[1773491216724,5.69637229,2076.8,2076.1,1.95860458]
[1773491217021,5.69637229,2076.7,2076.1,1.95860458]
[1773491217222,1.52231867,2076.9,2076.1,1.95860458]
[1773491217423,5.6965202,2076.8,2076.1,1.95860458]
[1773491217624,5.6965202,2076.7,2076.1,1.95860458]
[1773491217826,1.52231867,2076.9,2076.1,1.95860458]
[1773491218022,5.6965202,2076.8,2076.1,1.95860458]
[1773491218224,5.6965202,2076.7,2076.1,1.95860458]
[1773491218422,1.52231867,2076.9,2076.1,1.95860458]
[1773491218626,5.69668752,2076.8,2076.1,1.95860458]
[1773491218824,5.69668752,2076.7,2076.1,1.95860458]
[1773491219025,1.52231867,2076.9,2076.1,1.95860458]
[1773491219226,5.69692934,2076.8,2076.1,1.95860458]
[1773491219428,5.69692934,2076.7,2076.1,1.95860458]
[1773491219628,1.52231867,2076.9,2076.1,1.95860458]
[1773491219829,5.69692934,2076.8,2076.1,1.95860458]
[1773491220029,5.69692934,2076.7,2076.1,1.95860458]
[1773491220229,1.52231867,2076.9,2076.1,1.95860458]
[1773491220531,5.69715215,2076.8,2076.1,1.95860458]
[1773491220732,5.69715215,2076.7,2076.1,1.95860458]
[1773491220931,5.56104242,2076.9,2076.1,1.95860458]
[1773491221131,5.69721644,2076.8,2076.1,1.95860458]
[1773491221333,7.21953511,2076.7,2076.1,1.95860458]
[1773491221534,5.69721644,2076.6,2076.1,1.95860458]
[1773491225137,1.52231867,2076.7,2076.1,1.95860458]
[1773491225338,5.69977626,2076.6,2076.1,1.95860458]
[1773491225733,1.52231867,2076.7,2076.1,1.95860458]
[1773491225934,5.69977626,2076.6,2076.1,1.95860458]
[1773491226133,1.52231867,2076.7,2076.1,1.95860458]
[1773491226442,5.69951358,2076.6,2076.1,1.95860458]
[1773491229842,4.03872375,2076.9,2076.1,1.95860458]
[1773491230042,5.69899712,2076.8,2076.1,1.95860458]
[1773491230243,5.69899712,2076.7,2076.1,1.95860458]
[1773491230441,5.69899712,2076.6,2076.1,1.95860458]
[1773491230640,4.03872375,2076.9,2076.1,1.95860458]
[1773491230841,5.69888954,2076.8,2076.1,1.95860458]
[1773491231040,5.69888954,2076.7,2076.1,1.95860458]
[1773491231243,5.69888954,2076.6,2076.1,1.95860458]
[1773491231443,4.03872375,2076.9,2076.1,1.95860458]
[1773491231643,5.69881313,2076.8,2076.1,1.95860458]
[1773491231840,5.69881313,2076.7,2076.1,1.95860458]
[1773491232042,5.69881313,2076.6,2076.1,1.95860458]
[1773491232342,4.03872375,2076.9,2076.1,1.95860458]
[1773491232541,5.6987647,2076.8,2076.1,1.95860458]
[1773491232740,5.6987647,2076.7,2076.1,1.95860458]
[1773491232942,5.6987647,2076.6,2076.1,1.95860458]
[1773491233247,4.03872375,2076.9,2076.1,1.95860458]
[1773491233543,5.69873738,2076.8,2076.1,1.95860458]
[1773491233742,5.69873738,2076.7,2076.1,1.95860458]
[1773491233941,5.69873738,2076.6,2076.1,1.95860458]
[1773491234143,4.03872375,2076.9,2076.1,1.95860458]
[1773491234343,5.69869317,2076.8,2076.1,1.95860458]
[1773491234543,5.69869317,2076.7,2076.1,1.95860458]
[1773491234743,5.69869317,2076.6,2076.1,1.95860458]
[1773491234944,4.04269589,2076.9,2076.1,1.95860458]
[1773491235144,5.69869317,2076.8,2076.1,1.95860458]
[1773491235345,5.69869317,2076.7,2076.1,1.95860458]
[1773491235545,5.69869317,2076.6,2076.1,1.95860458]
[1773491235745,4.04269589,2076.9,2076.1,1.95860458]
[1773491235944,5.69865966,2076.8,2076.1,1.95860458]
[1773491236140,4.04269589,2076.9,2076.1,1.95860458]
[1773491236142,5.69865966,2076.7,2076.1,1.95860458]
[1773491236342,5.69865966,2076.6,2076.1,1.95860458]
[1773491236643,4.04269589,2076.9,2076.1,1.95860458]
[1773491236944,5.69929267,2076.8,2076.1,1.95860458]
[1773491237142,5.69929267,2076.7,2076.1,1.95860458]
[1773491237342,5.69929267,2076.6,2076.1,1.95860458]
[1773491237544,4.04269589,2076.9,2076.1,1.95860458]
[1773491237844,5.69929364,2076.8,2076.1,1.95860458]
[1773491238042,5.69929364,2076.7,2076.1,1.95860458]
[1773491238342,5.69929364,2076.6,2076.1,1.95860458]
[1773491238542,4.04269589,2076.9,2076.1,1.95860458]
[1773491238746,5.69930921,2076.8,2076.1,1.95860458]
[1773491239044,5.69930921,2076.7,2076.1,1.95860458]
[1773491239244,5.69930921,2076.6,2076.1,1.95860458]
[1773491239445,4.04269589,2076.9,2076.1,1.95860458]
[1773491239644,5.69933969,2076.8,2076.1,1.95860458]
[1773491239845,5.69933969,2076.7,2076.1,1.95860458]
[1773491240047,5.69933969,2076.6,2076.1,1.95860458]
[1773491240246,4.04269589,2076.9,2076.1,1.95860458]
[1773491240447,5.69938552,2076.8,2076.1,1.95860458]
[1773491240645,5.69938552,2076.7,2076.1,1.95860458]
[1773491240844,5.69938552,2076.6,2076.1,1.95860458]
[1773491241143,4.04269589,2076.9,2076.1,1.95860458]
[1773491241344,5.69944744,2076.8,2076.1,1.95860458]
[1773491241541,5.69944744,2076.7,2076.1,1.95860458]
[1773491241737,5.69944744,2076.6,2076.1,1.95860458]
[1773491241942,4.04269589,2076.9,2076.1,1.95860458]
[1773491242143,5.69944744,2076.8,2076.1,1.95860458]
[1773491242341,5.69944744,2076.7,2076.1,1.95860458]
[1773491242539,5.69944744,2076.6,2076.1,1.95860458]
[1773491242738,4.04269589,2076.9,2076.1,1.95860458]
[1773491242939,5.69952648,2076.8,2076.1,1.95860458]
[1773491243145,5.69952648,2076.7,2076.1,1.95860458]
[1773491243345,5.69952648,2076.6,2076.1,1.95860458]
[1773491243543,0.24077,2076.4,2075.5,2.86850449]
[1773491243744,0.24077,2076.4,2075.3,1.67370299]
[1773491243745,4.04269589,2076.1,2075.3,1.67370299]
[1773491243944,9.74233039,2076.0,2075.3,1.67370299]
[1773491244145,5.6996345,2075.9,2075.3,1.67370299]
[1773491244546,4.04269589,2076.1,2075.3,1.67370299]
[1773491244746,5.81033582,2076.0,2075.3,1.67892204]
[1773491245045,5.81033582,2075.9,2075.3,1.67892204]
[1773491245245,4.04269589,2076.2,2075.3,1.67892204]
[1773491245444,5.80576703,2076.1,2075.3,1.67892204]
[1773491245645,5.80576703,2076.0,2075.3,1.67892204]
[1773491245947,5.80576703,2075.9,2075.3,1.67892204]
[1773491246148,4.04269589,2076.2,2075.3,1.67892204]
[1773491246348,5.80247236,2076.1,2075.3,1.67892204]
[1773491247449,5.80247236,2076.0,2075.3,1.67892204]
[1773491247650,13.42969589,2076.3,2075.3,1.67892204]
[1773491247845,5.79988457,2076.2,2075.3,1.67892204]
[1773491249948,9.425,2076.1,2075.3,1.67892204]
[1773491250256,9.427,2076.1,2075.3,1.67892204]
[1773491253453,4.04269589,2076.4,2075.3,1.67892204]
[1773491253652,9.443,2076.3,2075.3,1.67892204]
[1773491253953,5.79223071,2076.2,2075.3,1.67892204]
[1773491261355,9.448,2076.3,2075.3,1.67892204]
[1773491261554,5.79275652,2076.2,2075.3,1.67892204]
[1773491271259,5.79275652,2076.1,2075.3,1.67892204]
[1773491271454,13.47310194,2076.3,2075.3,1.67892204]
[1773491271659,5.82110891,2076.2,2075.3,1.67892204]
[1773491271860,5.82110891,2076.1,2075.3,1.67892204]
[1773491272156,13.47310194,2076.3,2075.3,1.67892204]
[1773491272357,5.82486956,2076.2,2075.3,1.67892204]
[1773491272559,5.82486956,2076.1,2075.3,1.67892204]
[1773491272758,5.82486956,2076.0,2075.3,1.67892204]
[1773491272953,13.47310194,2076.3,2075.3,1.67892204]
[1773491273161,5.82486956,2076.2,2075.3,1.67892204]
[1773491273361,5.82486956,2076.1,2075.3,1.67892204]
[1773491273562,5.82486956,2076.0,2075.3,1.67892204]
[1773491273863,5.82486956,2075.9,2075.3,1.67892204]
[1773491274062,4.02510194,2076.2,2075.3,1.67892204]
[1773491274363,5.83149319,2076.1,2075.3,1.67892204]
[1773491274562,5.83149319,2076.0,2075.3,1.67892204]
[1773491274762,5.83149319,2075.9,2075.3,1.67892204]
[1773491274963,4.02510194,2076.2,2075.3,1.67892204]
[1773491275163,5.83184131,2076.1,2075.3,1.67892204]
[1773491275361,5.83184131,2076.0,2075.3,1.67892204]
[1773491275561,5.83184131,2075.9,2075.3,1.67892204]
[1773491275761,4.02510194,2076.2,2075.3,1.67892204]
[1773491275962,5.83214189,2076.1,2075.3,1.67892204]
[1773491276165,4.02510194,2076.3,2075.3,1.67892204]
[1773491276360,5.83194371,2076.2,2075.3,1.67892204]
[1773491276565,5.83194371,2076.1,2075.3,1.91633383]
[1773491276767,4.02510194,2076.3,2075.3,1.91633383]
[1773491276968,5.83194371,2076.2,2075.3,1.91633383]
[1773491277168,5.83194371,2076.1,2075.3,1.91633383]
[1773491277369,4.02510194,2076.4,2075.3,1.91633383]
[1773491277669,5.83161909,2076.3,2075.3,1.91633383]
[1773491277863,5.83161909,2076.2,2075.3,1.91633383]
[1773491278068,5.83161909,2076.1,2075.3,1.91633383]
[1773491278369,4.02510194,2076.4,2075.3,1.91633383]
[1773491278669,5.83123145,2076.3,2075.3,1.91633383]
[1773491278870,5.83123145,2076.2,2075.3,1.91633383]
[1773491279167,5.83123145,2076.1,2075.3,1.91633383]
[1773491279370,4.02510194,2076.4,2075.3,1.91633383]
[1773491279569,5.8310137,2076.3,2075.3,1.91633383]
[1773491279769,5.8310137,2076.2,2075.3,1.91633383]
[1773491280070,5.8310137,2076.1,2075.3,1.91633383]
[1773491280273,4.02510194,2076.4,2075.3,1.91633383]
[1773491280473,5.83106873,2076.3,2075.3,1.91633383]
[1773491280669,5.83106873,2076.2,2075.3,1.91633383]
[1773491280969,5.83106873,2076.1,2075.3,1.91633383]
[1773491281167,4.02510194,2076.4,2075.3,1.91633383]
[1773491281367,5.83027273,2076.3,2075.3,1.91633383]
[1773491281574,5.83027273,2076.2,2075.3,2.15722383]
[1773491281872,4.02510194,2076.5,2075.3,2.15722383]
[1773491282070,5.83001794,2076.4,2075.3,2.15722383]
[1773491282371,5.83001794,2076.3,2075.3,2.15722383]
[1773491282571,5.83001794,2076.2,2075.3,2.15722383]
[1773491282870,4.02510194,2076.5,2075.3,2.15722383]
[1773491283071,5.82918025,2076.4,2075.3,2.15722383]
[1773491283270,5.82918025,2076.3,2075.3,2.15722383]
[1773491283472,5.82918025,2076.2,2075.3,2.15722383]
[1773491283671,4.02510194,2076.5,2075.3,2.15722383]
[1773491283872,5.82856071,2076.4,2075.3,2.15722383]
[1773491284173,5.82856071,2076.3,2075.3,2.15722383]
[1773491284472,5.82856071,2076.2,2075.3,2.15722383]
[1773491284673,4.02510194,2076.5,2075.3,2.15722383]
[1773491284873,5.82804487,2076.4,2075.3,2.15722383]
[1773491285073,5.82804487,2076.3,2075.3,2.15722383]
[1773491285265,4.02510194,2076.5,2075.3,2.15722383]
[1773491285471,5.82747329,2076.4,2075.3,2.15722383]
[1773491285671,5.82747329,2076.3,2075.3,2.15722383]
[1773491285975,4.02510194,2076.5,2075.3,2.15722383]
[1773491286165,5.82708731,2076.4,2075.3,2.15722383]
[1773491286369,5.82708731,2076.3,2075.3,2.15722383]
[1773491286566,4.03924462,2076.5,2075.3,2.15722383]
[1773491286770,5.82699966,2076.4,2075.3,2.15722383]
[1773491286973,5.82699966,2076.3,2075.3,2.15722383]
[1773491287173,4.03924462,2076.5,2075.3,2.15722383]
[1773491287375,5.82665552,2076.4,2075.3,2.15722383]
[1773491287573,5.82665552,2076.3,2075.3,2.15722383]
[1773491287774,4.03924462,2076.5,2075.3,2.15722383]
[1773491287976,5.82665552,2076.4,2075.3,2.15722383]
[1773491288173,5.82665552,2076.3,2075.3,2.15722383]
[1773491288374,4.03924462,2076.5,2075.3,2.15722383]
[1773491288674,5.82638328,2076.4,2075.3,2.15722383]
[1773491288874,5.82638328,2076.3,2075.3,2.15722383]
[1773491289078,4.03924462,2076.5,2075.3,2.15722383]
[1773491289274,5.82621874,2076.4,2075.3,2.15722383]
[1773491289473,5.82621874,2076.3,2075.3,2.15722383]
[1773491289672,5.56202334,2076.5,2075.4,1.82534613]
[1773491289867,5.82617641,2076.4,2075.4,1.82534613]
[1773491290067,5.56202334,2076.5,2075.4,1.82534613]
[1773491290068,5.82617641,2076.3,2075.4,1.82534613]
[1773491290267,5.56202334,2076.5,2075.4,1.82534613]
[1773491290470,5.82479336,2076.4,2075.4,1.82534613]
[1773491290673,5.82479336,2076.3,2075.4,1.82534613]
[1773491290873,5.56202334,2076.5,2075.4,1.82534613]
[1773491291076,5.82602035,2076.4,2075.4,1.82534613]
[1773491291272,5.82602035,2076.3,2075.4,1.82534613]
[1773491291479,5.56202334,2076.5,2075.4,1.82534613]
[1773491291779,5.82592417,2076.4,2075.4,1.82534613]
[1773491292081,5.82592417,2076.3,2075.4,1.82534613]
[1773491292376,5.56202334,2076.5,2075.4,1.82534613]
[1773491292576,5.82588425,2076.4,2075.4,1.82534613]
[1773491292778,5.82588425,2076.3,2075.4,1.82534613]
[1773491292979,5.56202334,2076.5,2075.4,1.82534613]
[1773491293181,5.8258539,2076.4,2075.4,1.82534613]
[1773491293377,5.56202334,2076.5,2075.4,1.82534613]
[1773491293378,5.8258539,2076.3,2075.4,1.82534613]
[1773491293674,5.56202334,2076.5,2075.4,1.82534613]
[1773491293879,1.52277872,2076.1,2075.4,1.82534613]
[1773491294477,7.3486787,2076.1,2075.4,1.82534613]
[1773491294677,1.52277872,2076.1,2075.4,1.82534613]
[1773491295279,7.34964734,2076.1,2075.4,1.82534613]
[1773491295480,6.04441441,2076.5,2074.9,1.79412973]
[1773491295481,1.52277872,2075.6,2074.9,1.79412973]
[1773491296481,1.52277872,2075.6,2074.9,1.79993371]
[1773491296683,1.52277872,2075.4,2074.9,1.79993371]
[1773491296983,1.52714454,2075.4,2074.9,1.79993371]
[1773491297285,0.00436582,2075.4,2074.9,1.79993371]
[1773491306788,1.52714454,2075.4,2074.9,1.79993371]
[1773491308792,0.85246826,2075.1,2074.4,1.32264189]
[1773491309792,0.85246826,2075.1,2074.4,1.32788072]
[1773491310093,0.85246826,2075.1,2074.4,1.5700229]
[1773491312893,1.27718206,2074.9,2074.4,1.5700229]
[1773491314187,1.27718206,2074.7,2074.4,1.5700229]
[1773491314398,1.27718206,2074.7,2074.4,1.32477703]
[1773491318991,1.27718206,2074.7,2074.4,0.00523883]
[1773491321995,1.27718206,2074.5,2074.2,1.32264189]
[1773491322196,1.27718206,2074.5,2074.1,1.32264189]
[1773491323095,1.27718206,2074.9,2074.2,1.32264189]
[1773491335511,1.24835288,2075.0,2074.4,1.24659817]
[1773491336615,1.24835288,2074.9,2074.4,1.24659817]
[1773491345010,1.24835288,2074.8,2074.4,1.24659817]
[1773491351915,1.24835288,2074.9,2074.4,1.24659817]
[1773491352116,7.0836143,2074.9,2074.4,1.24659817]
[1773491352416,1.24835288,2074.9,2074.4,1.24659817]
[1773491353019,7.08514461,2074.9,2074.4,1.24659817]
[1773491353220,1.24835288,2074.9,2074.4,1.24659817]
[1773491378847,1.02628948,2074.8,2074.4,1.24659817]
[1773491379147,0.2432645,2074.8,2074.4,1.24659817]
[1773491394150,0.2432645,2074.8,2074.1,25.24099727]
[1773491394354,0.2432645,2074.8,2074.2,0.91053758]
[1773491395953,0.2432645,2074.8,2074.1,0.91553485]
[1773491396554,0.92297843,2074.7,2074.1,0.91553485]
[1773491402157,0.92297843,2074.7,2074.3,0.91053758]
[1773491409458,0.92297843,2074.9,2074.3,0.91053758]
[1773491410269,0.92297843,2074.8,2074.3,0.91053758]
[1773491412766,0.92297843,2074.9,2074.3,0.91053758]
[1773491413162,6.75252258,2074.9,2074.3,0.91053758]
[1773491413361,0.92297843,2074.9,2074.3,0.91053758]
[1773491413773,6.75257414,2074.9,2074.3,0.91053758]
[1773491414069,0.92297843,2074.9,2074.3,0.91053758]
[1773491415268,6.7528049,2075.0,2074.4,0.91053758]
[1773491415472,0.92297843,2075.0,2074.4,0.91053758]
[1773491416671,0.92297843,2075.1,2074.4,0.91053758]
[1773491416970,5.81935108,2075.0,2074.4,0.91053758]
[1773491417170,0.92297843,2075.1,2074.4,0.91053758]
[1773491417470,5.81943175,2075.0,2074.4,0.91053758]
[1773491417671,0.92297843,2075.0,2074.4,0.91053758]
[1773491419474,0.92297843,2075.0,2074.5,0.91053758]
[1773491423072,0.92297843,2075.0,2074.6,0.78748483]
[1773491424273,0.92297843,2075.0,2074.4,25.447]
[1773491424274,0.92297843,2075.0,2074.5,0.78748483]
[1773491461713,0.92297843,2075.0,2074.4,25.447]
[1773491461714,5.82307211,2075.1,2074.7,1.52470732]
[1773491461918,0.71540416,2075.2,2074.8,0.74266555]
[1773491462514,6.53738419,2075.3,2074.9,0.74266555]
[1773491462717,0.71540416,2075.3,2074.9,0.74266555]
[1773491463215,6.53555144,2075.3,2074.9,0.74266555]
[1773491465225,0.71540416,2075.3,2074.9,0.74266555]
[1773491476735,0.00436582,2075.4,2074.9,0.74266555]
[1773491476934,6.53241388,2075.4,2074.9,0.74266555]
[1773491477135,0.71976998,2075.4,2074.9,0.74266555]
[1773491477730,6.53240952,2075.4,2074.9,0.74266555]
[1773491477928,0.71976998,2075.4,2074.9,0.74266555]
[1773491478539,6.53240739,2075.4,2074.9,0.74266555]
[1773491478849,0.71976998,2075.4,2074.9,0.74266555]
[1773491479537,6.53249656,2075.4,2074.9,0.74266555]
[1773491479738,0.71976998,2075.4,2074.9,0.74266555]
[1773491480541,0.71540416,2075.3,2074.9,0.74266555]
[1773491486147,0.67457888,2075.4,2074.9,0.74266555]
[1773491488452,6.48867819,2075.4,2074.9,0.74266555]
[1773491488652,0.67457888,2075.4,2074.9,0.74266555]
[1773491489255,6.48926392,2075.4,2074.9,0.74266555]
[1773491489455,0.67457888,2075.4,2074.9,0.74266555]
[1773491490057,6.49006185,2075.4,2074.9,0.74266555]
[1773491490257,0.67457888,2075.4,2074.9,0.74266555]
[1773491490958,6.4900149,2075.4,2074.9,0.74266555]
[1773491491253,0.67457888,2075.4,2074.9,0.74266555]
[1773491497764,0.00436582,2075.4,2074.9,0.74266555]
[1773491497958,0.67457888,2075.4,2074.9,0.74266555]
[1773491498758,0.00436582,2075.4,2074.9,0.74266555]
[1773491499261,0.67457888,2075.4,2074.9,0.74266555]
[1773491501263,0.00436582,2075.4,2074.9,0.74266555]
[1773491501664,0.67457888,2075.4,2074.9,0.74266555]
[1773491502666,0.00436582,2075.4,2074.9,0.74266555]
[1773491520968,0.61289516,2075.3,2074.9,0.74266555]
[1773491521170,0.61289516,2075.3,2074.4,0.62014168]
[1773491521364,0.00436582,2075.4,2073.8,0.62014168]
[1773491521365,0.61289516,2075.1,2073.8,0.62014168]